Cogmind - Beta 15 @@@ ROGUE MODE // 2025.06.21 @ 10:33:10 Player: Storm Mk9 Result: Destroyed by Autobeam Turret with Autobeam Performance ------------- Evolutions (0) 0 Regions Visited (2) 400 Robots Destroyed (24) 120 Value Destroyed (409) 409 Prototype IDs (6) 120 Alien Tech Used (0) 0 Bonus (0) 0 TOTAL SCORE: 1049 Bonus ------- None Cogmind --------- Core Integrity 0/250 Matter 268/300 Energy 100/100 System Corruption 2% Temperature Cool (12) Movement Core (1350) Ox26 Location -10/Subcaves Parts ------- > --- POWER (1) -------- (None) > --- PROPULSION (2) --- (None) > --- UTILITY (2) ------ Huge Storage Unit Seismic Detector (fused) > --- WEAPON (2) ------- (None) > --- INVENTORY (25) --- Light Assault Rifle Light Assault Rifle Datajack Mining Laser Peak State ------------ > --- POWER ------------ Ion Engine > --- PROPULSION ------- Light Treads Light Treads > --- UTILITY ---------- Small Storage Unit Seismic Detector > --- WEAPON ----------- Assault Rifle Light Assault Rifle > --- INVENTORY -------- Ion Engine Light Assault Rifle [Rating: 7] Favorites ----------- Power Ion Engine Engine Ion Engine Propulsion Light Treads Treads Light Treads Utility Seismic Detector Device Seismic Detector Storage Huge Storage Unit Weapon Assault Rifle Energy Gun Medium Laser Ballistic Gun Assault Rifle Special Melee Weapon Datajack Build | -11 -10 -10 ------- Run | Yrd Mat Sub Slots Evolved . | . . . Power . | . . . Propulsion . | . . . Utility . | . . . Weapon . | . . . Parts Attached 15 | 7 5 3 Power 2 | 1 . 1 Engine 2 | 1 . 1 Core . | . . . Reactor . | . . . Propulsion 2 | 2 . . Treads 2 | 2 . . Leg . | . . . Wheel . | . . . Hover . | . . . Flight . | . . . Utility 4 | 2 2 . Device 1 | 1 . . Storage 3 | 1 2 . Processor . | . . . Hackware . | . . . Protection . | . . . Artifact . | . . . Weapon 7 | 2 3 2 Energy Gun 3 | . 1 2 Energy Cannon . | . . . Ballistic Gun 3 | 2 1 . Ballistic Cannon . | . . . Launcher . | . . . Special Weapon . | . . . Impact Weapon . | . . . Slashing Weapon . | . . . Piercing Weapon . | . . . Special Melee Weapon 1 | . 1 . Unidentified Prototypes . | . . . Parts Lost 9 | . 1 8 Power 2 | . . 2 Propulsion 2 | . . 2 Utility . | . . . Weapon 5 | . 1 4 Highest Loss Streak 4 | . 1 4 To Critical Strikes . | . . . Average Backups 5 | 2 6 4 Power . | . 1 . Propulsion . | . . . Utility . | . . . Weapon 4 | 1 4 3 Tool/Special . | . . . Unused Backups 2 | . . 2 Power . | . . . Propulsion . | . . . Utility . | . . . Weapon 2 | . . 2 Tool/Special . | . . . Average Slot Usage (%) 90 | . 99 73 Engine 13 | . 14 13 Treads 18 | . 27 2 Device 14 | . 14 14 Storage 14 | . 14 14 Energy Gun 11 | . 10 13 Ballistic Gun 14 | . 15 13 Special Melee Weapon 1 | . 1 . Peak Build Rating 7 | 7 7 7 Average Rating 6 | 4 6 5 On Entrance 4 | . 7 7 Naked Turns . | . . . Heaviest Build 90 | 14 90 90 Greatest Support 40 | 40 40 40 Greatest Overweight (x) 29 | . 2 29 Average Overweight (x) 3 | . 1 21 Largest Inventory Capacity 25 | 8 25 25 Average Capacity 22 | 6 22 25 Most Carried 8 | 5 8 7 Average Carried 5 | 2 6 4 Final Capacity 25 | 8 25 25 Final Carried 7 | 3 7 4 Class Distribution -------------------- 100% | Mutant Dominant Class ---------------- Mutant | -10/Materials Mutant | -10/Subcaves Resources | -11 -10 -10 ----------- Run | Yrd Mat Sub Matter Collected 658 | 148 422 88 Remotely . | . . . Salvage Created 664 | 30 482 152 Parts 56 | 3 37 16 Haulers Intercepted 2 | . 2 . Recyclers Shooed 1 | . 1 . Parts Field Recycled . | . . . Retrieved Matter . | . . . Parts Self-Destructed 14 | . . 14 Prevented . | . . . Kills | -11 -10 -10 ------- Run | Yrd Mat Sub Combat Hostiles Destroyed 19 | . 13 6 Guns 19 | . 13 6 Classes Destroyed 6 | 1 4 1 Tunneler 1 | 1 . . Hauler 2 | . 2 . Watcher 2 | . 2 . Swarmer 13 | . 9 4 Grunt 4 | . 4 . Subdweller 2 | . . 2 Best Kill Streak 3 | 1 3 3 Combat Bots Only 3 | . 3 3 Max Kills in Single Turn 2 | 1 1 2 Gunslinging . | . . . Exploded . | . . . Melee . | . . . Uniques/NPCs Destroyed . | . . . Combat | -11 -10 -10 -------- Run | Yrd Mat Sub Hostile Shots Fired 172 | . 74 98 Missed 49 | . 16 33 Hits 123 | . 58 65 Projectile 123 | . 58 65 Damage Taken 1177 | . 512 665 Core 250 | . 92 158 Absorbed by Shields . | . . . Core Remaining (%) 100 | 100 . . Volleys Fired 77 | 5 44 28 Largest 2 | 2 2 2 Hottest 70 | 40 70 70 Shots Fired 157 | 10 91 56 Gun 157 | 10 91 56 Cannon . | . . . Launcher . | . . . Special . | . . . Kinetic 92 | 10 53 29 Thermal 55 | . 38 17 Explosive . | . . . Electromagnetic 10 | . . 10 Robot Hit Streak 10 | 7 7 10 Robot Miss Streak 4 | 1 4 2 Penetration Max . | . . . Secondary Targets 4 | . 1 3 Max Gunslinging Chain 1 | . 1 1 Shots Hit Robots 98 | 8 56 34 Core Hits 35 | 1 25 9 Critical Kills . | . . . Critical Parts Destroyed . | . . . Critical Strikes 2 | . 2 . Burn 2 | . 2 . Melee Attacks 3 | . 3 . Impact . | . . . Slashing . | . . . Piercing . | . . . Sneak Attacks 3 | . 3 . Combat Hostiles . | . . . Follow-up Attacks . | . . . Damage Inflicted 1290 | 90 745 455 Guns 1290 | 90 745 455 Cannons . | . . . Explosions . | . . . Melee . | . . . Ramming . | . . . Kinetic 827 | 90 455 282 Thermal 384 | . 290 94 Explosive . | . . . Electromagnetic 79 | . . 79 Impact . | . . . Slashing . | . . . Piercing . | . . . Highest Corruption 2 | . 2 2 Average Corruption 1 | . 1 2 Corruption Purged . | . . . Corruption Blocked . | . . . Effects 59 | . 39 20 Message Errors 15 | . 11 4 Matter Fused 13 | . 9 4 Heat Flow Errors 3 | . . 3 Energy Discharges 8 | . 4 4 Parts Fused 1 | . . 1 Data Loss (minor) 9 | . 7 2 Data Loss (major) 2 | . 2 . Misfires 4 | . 3 1 Alerts 3 | . 3 . Weapon Failures 1 | . . 1 Overload Shots . | . . . Overflow Damage . | . . . Projectiles . | . . . Explosions . | . . . Melee . | . . . Knockbacks . | . . . Impact . | . . . Kinetic . | . . . Secondary . | . . . Self-Inflicted Damage . | . . . Shots . | . . . Rammed . | . . . Targets Rammed . | . . . Kicked . | . . . Crushed . | . . . Highest Temperature 232 | . 81 232 Average Temperature 36 | . 26 116 Received Heat Transfer 246 | . 90 156 Siege Activations . | . . . Martial Activations . | . . . Shielding Activations . | . . . Robots Disrupted . | . . . Combat Hostiles . | . . . Robots Corrupted . | . . . Combat Hostiles . | . . . Parts Fried . | . . . Impact Corruptions . | . . . Robots Melted . | . . . Combat Hostiles . | . . . Parts Melted 1 | . 1 . Heat Transferred 1221 | . 962 259 Parts Sabotaged . | . . . Parts Stolen . | . . . Parts Stripped . | . . . Power Chain Reactions . | . . . Alert | -11 -10 -10 ------- Run | Yrd Mat Sub Maximum Alert Level . | . . . Low Security (%) 100 | 100 100 . Level 1 . | . . . Level 2 . | . . . Level 3 . | . . . Level 4 . | . . . Level 5 . | . . . High Security . | . . . Max Security . | . . . Peak Influence 104 | 5 104 . Initial . | . . . Average 28 | . 29 . Influence Increases 624 | 5 464 155 Destroy 0b10 Robot/C 340 | . 260 80 Destroy 0b10 Robot/NC 25 | 5 20 . Destroy Leader 58 | . 58 . Trap Triggered on 0b10 30 | . 30 . Successful Hack 36 | . 36 . Disable Machine 30 | . 30 . Lose Combat Pursuer 105 | . 30 75 Influence Decreases 604 | 5 464 135 Time Decay 554 | 5 454 95 Lost Part 50 | . 10 40 Squads Dispatched 2 | . 2 . Investigation 2 | . 2 . Extermination . | . . . Reinforcement . | . . . Assault . | . . . Garrison . | . . . Intercept . | . . . Searches Triggered . | . . . Construction Impeded . | . . . Haulers Reinforced . | . . . Active Scanning Responses . | . . . Cargo Convoy Interrupts . | . . . Stealth | -11 -10 -10 --------- Run | Yrd Mat Sub Distress Signals 3 | . 3 . Communications Jammed . | . . . Distress Signals . | . . . Times Spotted 34 | . 27 7 Peak Tracking Total 5 | . 5 4 Tactical Retreats 5 | . 2 3 Traps | -11 -10 -10 ------- Run | Yrd Mat Sub Traps Triggered 4 | . 4 . Indirectly . | . . . Trap Hack Attempts 72 | . 72 . Triggered 1 | . 1 . Disarmed 3 | . 3 . Reprogrammed 4 | . 4 . Reused 3 | . 3 . Traps Extracted . | . . . Installed . | . . . Triggered 3 | . 3 . Machines | -11 -10 -10 ---------- Run | Yrd Mat Sub Machines Disabled 2 | . 2 . Max in Single Turn 1 | . 1 . Machines Repaired . | . . . Machines Dismantled . | . . . Machines Sabotaged . | . . . Overloaded Fab Kills . | . . . Hacking | -11 -10 -10 --------- Run | Yrd Mat Sub Machines Accessed 8 | . 8 . Terminals 8 | . 8 . Fabricators . | . . . Repair Stations . | . . . Recycling Units . | . . . Scanalyzers . | . . . Garrison Access . | . . . Total Hacks 27 | . 27 . Successful 19 | . 19 . Failed 8 | . 8 . Catastrophic 1 | . 1 . Database Lockouts . | . . . Manual 14 | . 14 . Terminals 27 | . 27 . Fabricators . | . . . Repair Stations . | . . . Recycling Units . | . . . Scanalyzers . | . . . Garrison Access . | . . . Terminal Hacks 10 | . 10 . Robot Analysis 2 | . 2 . Prototype ID Bank 6 | . 6 . Terminal Index 1 | . 1 . Locate Traps 1 | . 1 . Fabricator Hacks . | . . . Repair Station Hacks . | . . . Recycling Unit Hacks . | . . . Scanalyzer . | . . . Garrison Access Hacks . | . . . Unauthorized Hacks 9 | . 9 . Terminals 9 | . 9 . Botnet 3 | . 3 . Operators 1 | . 1 . Skim 5 | . 5 . Fabricators . | . . . Repair Stations . | . . . Recycling Units . | . . . Scanalyzers . | . . . Garrison Access . | . . . Data Cores Recovered . | . . . Used . | . . . Hacking Detections 7 | . 7 . Full Trace Events 1 | . 1 . Feedback Events . | . . . Feedback Blocked . | . . . Robot Schematics Acquired . | . . . Robots Built . | . . . Authchips . | . . . Time . | . . . Total Robot Build Rating . | . . . Part Schematics Acquired . | . . . Parts Built . | . . . Authchips . | . . . Time . | . . . Total Part Build Rating . | . . . Parts Repaired . | . . . Time . | . . . Parts Recycled . | . . . Recycled Matter . | . . . Retrieved Matter . | . . . Retrieved Components . | . . . Parts Scanalyzed . | . . . Part Schematics Acquired . | . . . Parts Damaged . | . . . Bothacking | -11 -10 -10 ------------ Run | Yrd Mat Sub Used RIF Installer . | . . . Robots Hacked 2 | . 2 . Non-combat 2 | . 2 . Combat . | . . . Robot Hacks Applied 3 | . 3 . parse_system 2 | . 2 . find_station 1 | . 1 . Relay Couplers Released . | . . . Fabnet Peak Effective % . | . . . Robots Rewired . | . . . Allies Hacked . | . . . Hacks Repelled . | . . . Allies | -11 -10 -10 -------- Run | Yrd Mat Sub Total Allies . | . . . Largest Group . | . . . Highest-Rated Group . | . . . Highest-Rated Ally . | . . . Total Orders . | . . . Ally Attacks . | . . . Total Damage . | . . . Kills . | . . . Allies Corrupted . | . . . Allies Melted . | . . . Intel | -11 -10 -10 ------- Run | Yrd Mat Sub Active Infowar (turns) 4579 | 22 2914 1643 Seismic 4579 | 22 2914 1643 Robot Analysis Total 2 | . 2 . Derelict Logs Recovered . | . . . Drone Launches . | . . . Drone Recoveries . | . . . Exploration | -11 -10 -10 ------------- Run | Yrd Mat Sub Turns Passed 4654 | 97 2914 1643 Spaces Moved 1048 | 48 865 135 Core 104 | 8 . 96 Treads 944 | 40 865 39 Legs . | . . . Wheels . | . . . Hover . | . . . Flight . | . . . Fastest Speed 50 | 50 160 320 Average Speed 382 | 141 274 1158 Slowest Speed 1500 | 160 320 1500 Overloaded Moves . | . . . Propulsion Burnouts . | . . . Robots Hopped . | . . . Potential Cave-ins . | . . . Cave-ins Triggered . | . . . Exploration Rate (%) 38 | 4 99 13 Regions Visited 2 Branch Regions 1 Pre-discovered Areas . | . . . Known Exits Taken . | . . . Unknown Exits Taken 2 | 1 1 . Scrap Searched . | . . . Spaces Dug . | . . . Terrain Destroyed . | . . . Melee . | . . . Projectile . | . . . AOE . | . . . Terrain Rammed . | . . . Walls Destroyed . | . . . Machines Disabled . | . . . Actions | -11 -10 -10 --------- Run | Yrd Mat Sub Total 1554 | 68 1317 169 Wait 318 | . 315 3 Move 1046 | 47 864 135 Hop . | . . . Pick Up 17 | 9 8 . Fast Attach 1 | 1 . . Attach 11 | 6 2 3 Detach . | . . . Swap 7 | . 7 . Drop 2 | . 2 . Fire 77 | 5 44 28 Melee 3 | . 3 . Ram . | . . . Kick . | . . . Crush . | . . . Escape Stasis . | . . . Rewire . | . . . Trap 72 | . 72 . Miscellaneous . | . . . Route ------- -11/Scrapyard -10/Materials (discovered 6 exits: [*Mat x3] / [*Min x2] / [*Sub]) -10/Subcaves (discovered 1 exit: [*Rec]) History --------- Turn | Location | Event 4 | -11/Scrapyard | Discovered new exit (range 16) 98 | -11/Scrapyard | Entered Materials 308 | -10/Materials | Build established: Mutant 310 | -10/Materials | Discovered new exit (range 10) 641 | -10/Materials | Discovered new exit (range 16) 973 | -10/Materials | Discovered new exit (range 16) 1251 | -10/Materials | Discovered new exit (range 8) 1608 | -10/Materials | Discovered new exit (range 8) 2016 | -10/Materials | Discovered new exit (range 10) 3012 | -10/Materials | Entered Subcaves 3013 | -10/Subcaves | Approached by a straggling Scientist 3200 | -10/Subcaves | Lost 4 parts (1p2n1w) 3846 | -10/Subcaves | A swath of the cavern ceiling suddenly collapsed 4196 | -10/Subcaves | Core integrity fell below 50% 4640 | -10/Subcaves | Core integrity fell below 20% 4652 | -10/Subcaves | Discovered new exit (range 14) 4655 | -10/Subcaves | Destroyed by Autobeam Turret with Autobeam Last Messages --------------- 04270_ System corrupted: Matter fused (-10). 04277_ Acquired 17 matter. ST-677(c): "I think it's somewhere west of here" 04346_ System corrupted: Energy discharge (-92). 04412_ System corrupted: Component data lost. ST-677(c): "I think it's somewhere west of here" 04440_ System corrupted: Heat flow error (+261). 04459_ System corrupted: Matter fused (-5). ST-677(c): "I think it's somewhere west of here" 04491_ System corrupted: Seismic Detector fused. 04509_ System corrupted: Energy discharge (-95). ST-677(c): "I think it's somewhere west of here" 04619_ ST-677(c) destroyed. 04637_ Acquired 11 matter. 04645_ Assault Rifle destroyed. 04647_ Med. Laser destroyed. 04652_ EXIT=FOUND 04655_ Ion Engine destroyed. Map ----- +----------------------------------------------------+ | ??????????????## #"""" ##?????????????? | | ???????????????##"""#### ##??????????????? | | ???????????????# #???# #???????????????? | | ???????????????## #??### #???????????????? | | ???????????????###""?# #???????????????? | | ??????????????## # #?## #???????????????? | | ?????????????## #?## ##???????????????? | | ????????????## ### ###??????????????? | | ????????????# ##?????????????? | | ????????????# #?????????????? | | ????????????# ### #?????????????? | | ????????????# #### ##?????????????? | | ????????????# < <# ##??????????????? | | ????????????## <& #???????????????? | | ????????????## R ##??????????????? | | ????????????# < < #??????????????? | | ????????????# < R #??????????????? | | ???????????## #??????????????? | | ???????????# ##??????????????? | | ???????????# ### ##??????????????? | | ???????????# ##?# #??????????????? | | ???????????####??## ##??????????????? | | ??????????????????## #???????????????? | | ???????????????????##% ##??????????????? | | ????????????????????# #??????????????? | | ????????????????????#%% @ #??????????????? | | ???????????????????# #??????????????? | | ???????????????? ## #??????????????? | | ????????????< ### #??????????????? | | ???????????##""t ??# ??????????????? | | ?????????????" ##?? #?????????????? | | ????????????#" ???? #?????????????? | | ????????????#""" ???? #?????????????? | | ????????????######???? #?????????????? | | ?????????????????????? ####?????????????? | | ????????????????????? ##????????????????? | | ????????????????????? ??????????????????? | | ????????????????????? ??????????????????? | | ???????????????????? ??????????????????? | | ????????????????????? ???????????????????? | | ??????????????????????????????????????????? | | ??????????????????????????????????????????? | | ??????????????????????????????????????????? | | ??????????????????????????????????????????? | | ??????????????????????????????????????????? | | ??????????????????????????????????????????? | | ??????????????????????????????????????????? | | ??????????????????????????????????????????? | | ??????????????????????????????????????????? | | ??????????????????????????????????????????? | +----------------------------------------------------+ Best States ------------- Heat Dissipation 25 Energy Generation 10 Energy Capacity 250 Matter Stores 300 Matter Capacity 300 Sight Range 16 Terrain Scan Density 10 Evasion (%) 40 Recoil Reduction 2 Item Schematics ----------------- None Robot Schematics ------------------ None Fabricated ------------ Nothing Repaired ---------- Nothing Alien Tech Used ----------------- None Achievements -------------- None Challenges ------------ None Game ------ Seed PersonalHeartLeg Manual? 0 Play Time 00:16:30 Cumulative 78.5 hours Start 2025.06.21 @ 10:13:36 End 2025.06.21 @ 10:33:10 Sessions 1 Manual Loads 0 Difficulty Rogue Special Mode None Game No. 77 Rogue 58 Adventurer 0 Explorer 19 Win Type - Total 0 Types 0/0/0/0/0/0/0/0/0/0 Lore% 54 Gallery% 44 Achievement% 68 Wizard Run 0 Options --------- Layout 1 ASCII 0 Keyboard 0 Movement Mouse Keybinds 0 Fullscreen 2 Font 16/SmallcapsGlow Map View 50x40 Zoom Use 0% Tactical HUD 1 Map Filters NONE Filters NONE Steam SD RUN: 43baaa4b-a2e4-45d7-b982-c1d7a5092062